bitfinex/quotes_SOLUSD_20250915
["timestamp","ask_amount","ask_price","bid_price","bid_amount"]
[1757947606212,39.59559401,234.96,234.92,0.06]
[1757947606382,20.60409527,234.93,234.92,0.06]
[1757947606721,54.12409527,234.93,234.92,0.06]
[1757947606881,54.80409527,234.93,234.92,0.06]
[1757947607180,21.26409527,234.93,234.92,0.06]
[1757947607485,54.80409527,234.93,234.92,0.06]
[1757947607680,59.06068233,234.93,234.92,0.06]
[1757947610998,47.11559401,234.93,234.92,0.06]
[1757947611201,58.38068233,234.93,234.92,0.06]
[1757947611601,54.12409527,234.93,234.92,0.75]
[1757947611998,58.38068233,234.93,234.92,0.06]
[1757947612494,54.12409527,234.93,234.92,0.06]
[1757947612809,54.12409527,234.93,234.92,0.75]
[1757947613510,58.38068233,234.93,234.92,0.06]
[1757947615788,59.08068233,234.93,234.92,0.06]
[1757947617391,60.78815037,234.93,234.92,0.06]
[1757947617810,59.08068233,234.93,234.92,0.06]
[1757947618610,58.36068233,234.93,234.92,0.06]
[1757947619029,13.59559401,234.93,234.92,0.78]
[1757947619194,54.10409527,234.93,234.92,0.78]
[1757947619610,20.60409527,234.93,234.92,0.78]
[1757947619815,40.50850126,234.93,234.92,0.78]
[1757947620931,66.50850126,234.93,234.92,0.78]
[1757947621306,84.36068233,234.93,234.92,0.06]
[1757947621512,85.06068233,234.93,234.92,0.06]
[1757947622506,84.36068233,234.93,234.92,0.06]
[1757947623113,50.86068233,234.93,234.92,0.06]
[1757947623323,84.36068233,234.93,234.92,0.06]
[1757947623719,59.05068233,234.93,234.92,0.06]
[1757947624431,58.36068233,234.93,234.92,0.06]
[1757947625421,20.60409527,234.93,234.92,0.72]
[1757947625734,54.08409527,234.93,234.92,0.72]
[1757947625952,7.00850126,234.93,234.92,4.97676826]
[1757947626530,33.00850126,234.93,234.92,4.97676826]
[1757947627025,13.59559401,234.97,234.92,4.97676826]
[1757947627026,13.59559401,234.96,234.92,4.97676826]
[1757947627227,13.59559401,234.96,234.93,0.66]
[1757947627431,13.59559401,234.98,234.93,0.66]
[1757947627609,7.00850126,234.98,234.93,0.66]
[1757947627917,40.52850126,234.99,234.94,14.89742061]
[1757947628105,0.03,235.0,234.95,0.66]
[1757947628307,0.03,235.0,234.95,7.66850126]
[1757947628614,0.03,235.0,234.98,7.00850126]
[1757947628820,0.03,235.0,234.97,7.00850126]
[1757947629316,0.03,235.0,234.98,0.66]
[1757947629917,7.00850126,234.99,234.95,4.25620587]
[1757947630120,7.00850126,234.98,234.96,0.66]
[1757947630421,7.00850126,234.97,234.94,4.91640386]
[1757947630732,13.59559401,234.94,234.92,0.06]
[1757947630935,20.60409527,234.93,234.92,0.06]
[1757947631250,54.14409527,234.93,234.92,0.06]
[1757947631739,54.83409527,234.93,234.92,0.06]
[1757947632034,59.09068233,234.93,234.92,0.06]
[1757947635630,13.59559401,234.92,234.91,1e-08]
[1757947635830,13.59559401,234.92,234.89,0.06]
[1757947635831,39.59559401,234.9,234.89,0.06]
[1757947636034,80.12409527,234.9,234.89,0.06]
[1757947636238,80.81409527,234.9,234.89,0.06]
[1757947637034,85.07122596,234.9,234.89,0.06]
[1757947637230,88.22769915,234.9,234.89,0.06]
[1757947638333,89.93545879,234.9,234.89,0.06]
[1757947638543,13.59559401,234.89,234.87,0.06]
[1757947638746,13.59559401,234.87,234.85,0.1]
[1757947638925,57.28056846,234.86,234.85,0.1]
[1757947639119,55.21992294,234.86,234.85,0.1]
[1757947639367,61.5384242,234.86,234.85,0.1]
[1757947639535,57.28056846,234.86,234.85,0.1]
[1757947640331,23.76056846,234.86,234.85,0.1]
[1757947640525,54.12409527,234.86,234.85,0.76]
[1757947640926,54.12409527,234.86,234.85,0.1]
[1757947641141,47.11559401,234.86,234.85,0.76]
[1757947641351,20.60409527,234.86,234.85,0.76]
[1757947641545,7.00850126,234.86,234.85,0.76]
[1757947641846,7.00850126,234.86,234.85,0.1]
[1757947642848,7.00850126,234.86,234.85,0.76]
[1757947643256,11.266357,234.86,234.85,0.1]
[1757947643450,28.71704571,234.86,234.85,0.1]
[1757947643649,28.02704571,234.86,234.85,0.1]
[1757947644167,23.76918997,234.86,234.85,0.1]
[1757947644566,186.62409527,234.86,234.85,0.76]
[1757947644865,179.61559401,234.86,234.85,0.76]
[1757947645052,186.62409527,234.86,234.85,0.76]
[1757947645747,190.88195101,234.86,234.85,0.1]
[1757947646058,194.74084887,234.86,234.85,0.1]
[1757947646431,194.05084887,234.86,234.85,0.1]
[1757947646853,194.74084887,234.86,234.85,0.1]
[1757947647542,198.11792883,234.86,234.85,0.1]
[1757947648457,65.61792883,234.86,234.85,0.1]
[1757947649444,64.92792883,234.86,234.85,0.1]
[1757947649652,61.55084887,234.86,234.85,0.1]
[1757947651745,62.27084887,234.86,234.85,0.1]
[1757947652060,65.1279187,234.86,234.85,0.1]
[1757947652372,62.27084887,234.86,234.85,0.1]
[1757947652948,176.3539937,234.83,234.82,0.06]
[1757947653261,87.49139282,234.83,234.82,0.06]
[1757947653462,88.21139282,234.83,234.82,0.06]
[1757947654343,89.91973595,234.83,234.82,0.06]
[1757947655670,13.59559401,234.82,234.81,0.1]
[1757947655847,26.62721806,234.82,234.81,1e-08]
[1757947656253,60.08721806,234.82,234.81,1e-08]
[1757947656455,61.79570711,234.82,234.81,1e-08]
[1757947656653,54.78720585,234.82,234.81,1e-08]
[1757947656849,28.33570711,234.82,234.81,1e-08]
[1757947657057,58.96148218,234.82,234.81,1e-08]
[1757947657463,57.97299313,234.82,234.81,1e-08]
[1757947657652,65.08448037,234.82,234.81,1e-08]
[1757947657848,66.79289646,234.82,234.81,1e-08]
[1757947658771,66.79137265,234.82,234.81,1e-08]
[1757947659863,64.53453992,234.82,234.81,1e-08]
[1757947660175,64.53453992,234.82,234.8,0.1]
[1757947660378,21.51463659,234.81,234.8,0.1]
[1757947660671,54.97463659,234.81,234.8,0.1]
[1757947661175,59.23339899,234.81,234.8,0.1]
[1757947661353,13.59559401,234.78,234.77,0.66]
[1757947661551,51.80726254,234.78,234.77,0.66]
[1757947661768,49.01044989,234.78,234.76,0.06]
[1757947661969,15.55044989,234.77,234.76,0.06]
[1757947662855,15.55044989,234.77,234.76,0.72]
[1757947663264,19.80993789,234.77,234.76,0.06]
[1757947664683,15.55044989,234.77,234.76,0.72]
[1757947664864,19.80993789,234.77,234.76,0.72]
[1757947665065,19.80993789,234.77,234.76,0.06]
[1757947665579,19.80993789,234.77,234.76,0.72]
[1757947665888,47.03559401,234.77,234.76,0.72]
[1757947666088,74.99044989,234.77,234.76,0.72]
[1757947667471,53.24993789,234.77,234.76,0.72]
[1757947668186,53.24993789,234.77,234.76,0.06]
[1757947668372,53.24993789,234.77,234.76,0.72]
[1757947668780,53.24993789,234.77,234.76,0.06]
[1757947670881,13.59559401,234.77,234.76,0.06]
[1757947671202,48.97044989,234.77,234.76,0.72]
[1757947671705,53.22993789,234.77,234.76,0.72]
[1757947672066,53.22993789,234.77,234.76,0.06]
[1757947672575,53.22993789,234.77,234.76,0.72]
[1757947672778,53.22993789,234.77,234.76,0.06]
[1757947674582,39.59559401,234.74,234.73,0.06]
[1757947674789,80.05855603,234.74,234.73,0.06]
[1757947674985,78.10370015,234.74,234.73,0.06]
[1757947675286,78.76370015,234.74,234.73,0.06]
[1757947675465,77.54530577,234.74,234.73,0.06]
[1757947675666,81.80533814,234.74,234.73,0.06]
[1757947676062,84.66457748,234.74,234.73,0.06]
[1757947676794,84.00457748,234.74,234.73,0.06]
[1757947676973,89.86914512,234.74,234.73,0.06]
[1757947677569,85.26734432,234.74,234.73,0.06]
[1757947678187,82.40810498,234.74,234.73,0.06]
[1757947678367,51.84792684,234.74,234.73,0.06]
[1757947678572,85.24792684,234.74,234.73,0.06]
[1757947678890,82.38810498,234.74,234.73,0.06]
[1757947679390,90.8675285,234.74,234.73,0.06]
[1757947679899,90.2075285,234.74,234.73,0.06]
[1757947680103,93.06685137,234.74,234.73,0.06]
[1757947680284,93.72685137,234.74,234.73,0.06]
[1757947680994,13.59559401,234.73,234.71,0.16]
[1757947681201,59.94664771,234.72,234.71,0.16]
[1757947681795,59.94664771,234.72,234.61,12.73243825]
[1757947681796,26.0,234.63,234.61,0.1]
[1757947681991,27.95485588,234.62,234.61,0.1]
[1757947682497,27.95485588,234.62,234.61,0.82]
[1757947683073,26.0,234.62,234.61,0.82]
[1757947683294,27.95485588,234.62,234.61,0.82]
[1757947685480,74.99044989,234.62,234.61,0.82]
[1757947685802,57.08200688,234.62,234.61,0.1]
[1757947685984,56.43200688,234.62,234.61,0.1]
[1757947686704,48.99200688,234.62,234.61,0.1]
[1757947686892,56.45200688,234.62,234.61,0.1]
[1757947687272,64.9214304,234.62,234.61,0.1]
[1757947687478,13.59559401,234.55,234.51,0.1]
[1757947687704,1.95485588,234.52,234.51,0.1]
[1757947688000,35.39485588,234.53,234.51,0.1]
[1757947688178,26.0,234.57,234.51,28.68833613]
[1757947688379,27.95485588,234.57,234.52,0.72]
[1757947688777,35.41485588,234.58,234.52,2.67485588]
[1757947689102,35.41485588,234.58,234.53,0.72]
[1757947689282,1.95485588,234.57,234.54,4.26366504]
[1757947689484,26.0,234.56,234.55,0.72]
[1757947690293,26.0,234.56,234.55,4.98348326]
[1757947691894,26.0,234.56,234.55,0.72]
[1757947692204,27.95485588,234.56,234.55,0.72]
[1757947692908,26.0,234.56,234.55,4.98348326]
[1757947693118,59.48,234.56,234.55,4.98348326]
[1757947693320,26.0,234.56,234.55,4.98348326]
[1757947693813,1.95485588,234.56,234.51,12.72758986]
[1757947694013,1.95485588,234.55,234.52,4.98402865]
[1757947694307,1.95485588,234.54,234.52,4.98402865]
[1757947694608,1.95485588,234.54,234.53,0.72]
[1757947695711,1.95485588,234.54,234.51,0.1]
[1757947695917,27.95485588,234.52,234.51,0.1]
[1757947696213,41.55044989,234.52,234.51,0.1]
[1757947696406,39.59559401,234.49,234.48,0.06]
[1757947696609,76.98530577,234.49,234.48,0.06]
[1757947696812,13.59559401,234.48,234.41,0.1]
[1757947697115,39.59559401,234.43,234.41,0.1]
[1757947697316,49.17044989,234.42,234.41,0.1]
[1757947697489,15.55044989,234.42,234.41,0.1]
[1757947697903,49.17044989,234.42,234.41,0.1]
[1757947698498,53.43629751,234.42,234.41,0.1]
[1757947698700,49.17044989,234.42,234.41,0.1]
[1757947699203,19.81629751,234.42,234.41,0.1]
[1757947699506,53.43629751,234.42,234.41,0.1]
[1757947699887,19.81629751,234.42,234.41,0.1]
[1757947700086,15.55044989,234.42,234.41,0.1]
[1757947700304,53.39629751,234.42,234.41,0.1]
[1757947700513,49.13044989,234.42,234.41,0.1]
[1757947701084,54.04629751,234.42,234.41,0.1]
[1757947701316,53.39629751,234.42,234.41,0.1]
[1757947701784,13.59559401,234.37,234.33,0.72]
[1757947701984,1.95485588,234.34,234.33,0.72]
[1757947702185,1.95485588,234.34,234.31,0.1]
[1757947702807,33.58,234.36,234.32,0.72]
[1757947702808,1.95485588,234.33,234.32,0.72]
[1757947703008,1.95485588,234.34,234.31,15.03743028]
[1757947703210,26.0,234.38,234.31,15.03743028]
[1757947703403,1.95485588,234.37,234.31,15.03743028]
[1757947703593,1.95485588,234.37,234.32,0.72]
[1757947703789,1.95485588,234.36,234.32,0.72]
[1757947704002,1.95485588,234.36,234.33,0.72]
[1757947704309,1.95485588,234.34,234.31,4.36780458]
[1757947704807,1.95485588,234.36,234.32,0.72]
[1757947705009,35.59485588,234.37,234.32,0.72]
[1757947705314,1.95485588,234.39,234.32,0.72]
[1757947705494,33.64,234.38,234.32,0.72]
[1757947705896,1.95485588,234.39,234.32,0.72]
[1757947706640,26.0,234.4,234.33,1.95485588]
[1757947706914,26.0,234.4,234.34,15.6555637]
[1757947707214,27.95485588,234.4,234.35,0.72]
[1757947707792,1.95485588,234.39,234.35,0.72]
[1757947707997,1.95485588,234.39,234.36,0.72]
[1757947708196,26.0,234.38,234.37,0.72]
[1757947709301,26.0,234.38,234.37,4.98675769]
[1757947710502,26.0,234.38,234.35,4.26699022]
[1757947710703,27.95485588,234.38,234.32,4.98766814]
[1757947710899,13.59559401,234.37,234.32,0.72]
[1757947711105,26.0,234.34,234.31,0.1]
[1757947711320,1.95485588,234.33,234.31,0.1]
[1757947711629,1.95485588,234.32,234.31,0.1]
[1757947713520,75.88044989,234.32,234.31,0.1]
[1757947713826,75.17044989,234.32,234.31,0.1]
[1757947714732,75.88044989,234.32,234.31,0.1]
[1757947715124,75.17044989,234.32,234.31,0.1]
[1757947715820,73.92559401,234.32,234.31,0.1]
[1757947716017,78.19326215,234.32,234.31,0.1]
[1757947717017,75.88044989,234.32,234.31,0.1]
[1757947717618,73.21559401,234.32,234.31,0.1]
[1757947717807,49.84044989,234.32,234.31,0.1]
[1757947718008,49.13044989,234.32,234.31,0.1]
[1757947718206,47.88559401,234.32,234.31,0.1]
[1757947718433,47.17559401,234.32,234.31,0.1]
[1757947718642,0.71,234.35,234.31,0.1]
[1757947718809,35.55485588,234.34,234.32,0.67]
[1757947719012,33.6,234.33,234.32,0.67]
[1757947719216,33.6,234.33,234.31,4.36780994]
[1757947719420,35.55485588,234.33,234.31,5.03780994]
[1757947719824,26.0,234.36,234.31,5.03780994]
[1757947719825,1.95485588,234.32,234.31,0.1]
[1757947720022,4.36780994,234.45,234.31,0.1]
[1757947720023,26.0,234.34,234.31,0.1]
[1757947720227,1.95485588,234.33,234.31,0.77]
[1757947720540,1.95485588,234.32,234.31,0.1]
[1757947721124,49.15044989,234.32,234.31,0.1]
[1757947721837,50.26109586,234.32,234.31,0.1]
[1757947722136,50.97109586,234.32,234.31,0.1]
[1757947722325,55.238764,234.32,234.31,0.1]
[1757947722915,17.37109586,234.32,234.31,0.1]
[1757947723234,13.59559401,234.32,234.31,0.1]
[1757947723433,13.59559401,234.32,234.31,5.03785028]
[1757947723608,73.17559401,234.32,234.31,5.03785028]
[1757947724242,26.0,234.32,234.31,5.03785028]
[1757947724437,36.64550185,234.33,234.31,5.03785028]
[1757947724738,36.64550185,234.33,234.31,0.77]
[1757947725041,3.06550185,234.32,234.31,0.1]
[1757947725418,3.06550185,234.32,234.31,4.36785028]
[1757947725622,36.64550185,234.33,234.31,4.36785028]
[1757947725834,36.64550185,234.33,234.31,0.1]
[1757947726013,3.06550185,234.32,234.31,0.1]
[1757947726215,3.06550185,234.32,234.31,4.36785028]
[1757947726442,26.0,234.33,234.31,5.03785028]
[1757947726652,33.58,234.32,234.31,4.36785028]
[1757947726934,33.58,234.35,234.31,15.03747598]
[1757947727138,33.58,234.36,234.32,0.67]
[1757947727532,33.58,234.36,234.33,14.93620107]
[1757947727727,33.58,234.36,234.34,0.67]
[1757947728136,26.0,234.36,234.35,0.67]
[1757947729023,29.06550185,234.36,234.33,4.26748602]
[1757947729222,3.06550185,234.34,234.31,0.1]
[1757947729427,62.62550185,234.34,234.31,4.36782278]
[1757947729627,3.06550185,234.36,234.33,4.26748602]
[1757947729817,26.0,234.36,234.34,0.67]
[1757947730031,33.58,234.38,234.33,14.93620107]
[1757947730224,33.58,234.38,234.34,0.67]
[1757947730430,33.58,234.38,234.35,0.67]
[1757947730626,3.06550185,234.39,234.36,0.67]
[1757947730829,26.0,234.39,234.37,0.67]
[1757947731032,29.06550185,234.39,234.37,0.67]
[1757947731239,3.06550185,234.38,234.34,0.67]
[1757947731439,3.06550185,234.38,234.33,14.93620107]
[1757947731440,33.58,234.37,234.35,0.67]
[1757947731655,3.06550185,234.36,234.31,5.03772104]
[1757947731831,33.58,234.37,234.31,5.03772104]
[1757947731832,3.06550185,234.33,234.31,5.03772104]
[1757947732036,3.06550185,234.33,234.32,0.67]
[1757947732230,3.06550185,234.34,234.32,0.67]
[1757947732550,3.06550185,234.34,234.31,4.36772104]
[1757947732730,3.06550185,234.34,234.31,5.03772104]
[1757947733045,3.06550185,234.32,234.31,0.1]
[1757947733237,16.66109586,234.32,234.31,0.1]
[1757947733642,17.35109586,234.32,234.31,0.1]
[1757947734232,17.35109586,234.32,234.31,0.16]
[1757947734545,47.86559401,234.32,234.31,0.16]
[1757947734745,50.93109586,234.32,234.31,0.16]
[1757947735045,55.198764,234.32,234.31,0.16]
[1757947735231,58.36328243,234.32,234.31,0.16]
[1757947735540,58.3632181,234.32,234.31,0.16]
[1757947735745,39.59559401,234.28,234.26,0.06]
[1757947735928,50.30109586,234.27,234.26,0.06]
[1757947736343,50.99109586,234.27,234.26,0.06]
[1757947736644,0.69,234.31,234.26,0.06]
[1757947736842,3.06550185,234.27,234.26,4.9987612]
[1757947737041,36.70550185,234.27,234.26,4.9987612]
[1757947737226,33.64,234.27,234.26,4.9987612]
[1757947737428,33.64,234.27,234.26,0.73]
[1757947737628,33.64,234.27,234.26,0.06]
[1757947737847,33.64,234.27,234.26,4.3287612]
[1757947738047,33.64,234.27,234.26,4.9987612]
[1757947738345,26.0,234.27,234.26,4.9987612]
[1757947738530,0.69,234.35,234.26,4.9987612]
[1757947738731,3.06550185,234.32,234.27,0.67]
[1757947738946,23.92550185,234.31,234.28,0.67]
[1757947739163,36.72550185,234.32,234.29,0.67]
[1757947739528,0.69,234.36,234.27,0.67]
[1757947739836,26.0,234.32,234.27,0.67]
[1757947740332,4.95623662,234.4,234.28,3.06550185]
[1757947740533,3.06550185,234.35,234.29,0.67]
[1757947740757,3.06550185,234.34,234.29,0.67]
[1757947741042,3.06550185,234.34,234.3,0.67]
[1757947741445,3.06550185,234.34,234.28,14.93938876]
[1757947741446,3.06550185,234.34,234.31,0.67]
[1757947741758,3.06550185,234.32,234.26,4.32858096]
[1757947742047,3.06550185,234.3,234.27,0.68]
[1757947742255,3.06550185,234.31,234.27,0.68]
[1757947742443,3.06550185,234.31,234.28,0.68]
[1757947742647,3.06550185,234.3,234.26,4.32858096]
[1757947742842,3.06550185,234.29,234.26,5.00858096]
[1757947743152,59.66,234.31,234.26,4.32858096]
[1757947743351,3.06550185,234.27,234.26,0.06]
[1757947743728,17.38109586,234.27,234.26,0.06]
[1757947744354,16.66109586,234.27,234.26,0.06]
[1757947744549,17.38109586,234.27,234.26,0.06]
[1757947745248,16.66109586,234.27,234.26,0.06]
[1757947745477,13.59559401,234.27,234.26,0.06]
[1757947745632,26.0,234.28,234.26,0.74]
[1757947745839,26.0,234.28,234.26,4.3287612]
[1757947746043,3.06550185,234.27,234.26,4.3287612]
[1757947746266,26.0,234.28,234.26,5.0087612]
[1757947746458,26.0,234.28,234.27,0.68]
[1757947746643,169.22550185,234.31,234.27,0.68]
[1757947746847,135.56550185,234.31,234.26,15.00066421]
[1757947747039,135.56550185,234.31,234.26,15.68066421]
[1757947747238,3.06550185,234.3,234.26,15.68066421]
[1757947747439,3.06550185,234.3,234.27,0.68]
[1757947747638,3.06550185,234.29,234.26,4.3287612]
[1757947747842,3.06550185,234.28,234.26,0.06]
[1757947748635,3.06550185,234.28,234.26,4.32874403]
[1757947750039,3.06550185,234.3,234.27,0.68]
[1757947750241,132.5,234.31,234.28,0.68]
[1757947750448,132.5,234.31,234.29,0.68]
[1757947750644,132.5,234.31,234.3,0.68]
[1757947751549,132.5,234.31,234.3,4.94803243]
[1757947751864,132.5,234.31,234.3,8.01353428]
[1757947752158,33.62,234.36,234.3,18.68361537]
[1757947752339,3.06550185,234.37,234.31,3.74550185]
[1757947752540,3.06550185,234.39,234.32,3.74550185]
[1757947752741,33.62,234.39,234.33,3.74550185]
[1757947753451,36.68550185,234.39,234.33,0.68]
[1757947753763,33.62,234.39,234.34,14.9355637]
[1757947753967,135.56550185,234.4,234.35,0.68]
[1757947754437,132.5,234.4,234.36,0.68]
[1757947754633,132.5,234.4,234.35,3.06550185]
[1757947754634,132.5,234.4,234.37,0.68]
[1757947755558,132.5,234.4,234.34,18.00106555]
[1757947755750,132.5,234.4,234.37,0.68]
[1757947755957,26.0,234.44,234.35,3.06550185]
[1757947756266,33.84550185,234.48,234.4,3.06550185]
[1757947756267,3.06550185,234.48,234.4,3.06550185]
[1757947756447,3.06550185,234.48,234.34,36.27208328]
[1757947756448,3.06550185,234.48,234.41,3.74550185]
[1757947756762,3.06550185,234.48,234.42,0.68]
[1757947757139,3.06550185,234.48,234.37,0.68]
[1757947757140,3.06550185,234.43,234.37,0.68]
[1757947757442,3.06550185,234.41,234.37,0.68]
[1757947757649,3.06550185,234.42,234.39,4.26639361]
[1757947758559,3.06550185,234.41,234.39,4.26639361]
[1757947758755,3.06550185,234.4,234.37,4.26663786]
[1757947758970,63.88558036,234.44,234.33,3.06550185]
[1757947758971,3.06550185,234.38,234.33,11.34848661]
[1757947759140,3.06550185,234.38,234.31,3.06550185]
[1757947759141,3.06550185,234.37,234.31,0.68]
[1757947759458,3.06550185,234.36,234.31,0.68]
[1757947759670,3.06550185,234.36,234.33,4.26748602]
[1757947759856,13.59559401,234.33,234.28,4.32824348]
[1757947760173,7.04580811,234.32,234.28,5.00824348]
[1757947760766,7.04580811,234.32,234.28,14.99923545]
[1757947761140,7.76580811,234.32,234.28,4.32824348]
[1757947761541,40.88580811,234.33,234.29,0.68]
[1757947761762,7.04580811,234.33,234.29,4.94806129]
[1757947761957,33.82,234.34,234.29,4.26806129]
[1757947761958,7.04580811,234.32,234.29,4.26806129]
[1757947762259,7.04580811,234.31,234.28,0.06]
[1757947762841,7.04580811,234.31,234.28,4.32837658]
[1757947763040,26.0,234.31,234.28,5.00837658]
[1757947763856,26.0,234.31,234.28,15.67936855]
[1757947764362,26.0,234.31,234.28,5.00837658]
[1757947764565,26.0,234.31,234.28,4.32837658]
[1757947764949,7.04580811,234.29,234.28,0.06]
[1757947765664,7.76580811,234.29,234.28,0.06]
[1757947766052,7.04580811,234.29,234.28,0.06]
[1757947766687,21.36140212,234.29,234.28,0.06]
[1757947767452,25.62961672,234.29,234.28,0.06]
[1757947767639,21.36140212,234.29,234.28,0.06]
[1757947768381,25.62961672,234.29,234.28,0.06]
[1757947769375,32.3210899,234.29,234.28,0.06]
[1757947769576,35.19033788,234.29,234.28,0.06]
[1757947770763,62.61751586,234.29,234.28,0.06]
[1757947771469,62.61574747,234.29,234.28,0.06]
[1757947771772,58.36753287,234.29,234.28,0.06]
[1757947771977,55.18140212,234.29,234.28,0.06]
[1757947772353,58.3669784,234.29,234.28,0.06]
[1757947772555,62.635193,234.29,234.28,0.06]
[1757947775182,62.615193,234.29,234.28,0.06]
[1757947775566,23.8269784,234.29,234.28,0.06]
[1757947775767,61.895193,234.29,234.28,0.06]
[1757947776375,62.585193,234.29,234.28,0.06]
[1757947777089,58.3169784,234.29,234.28,0.06]
[1757947777459,62.585193,234.29,234.28,0.06]
[1757947777865,57.6069784,234.29,234.28,0.06]
[1757947778283,0.03,234.31,234.28,0.74]
[1757947778489,0.03,234.31,234.28,0.06]
[1757947778669,7.04580811,234.29,234.28,4.32839679]
[1757947778870,7.04580811,234.29,234.28,0.06]
[1757947779468,7.04580811,234.29,234.28,0.74]
[1757947779779,29.06600675,234.29,234.28,5.00839679]
[1757947780380,29.06600675,234.29,234.28,0.06]
[1757947780687,42.66160076,234.29,234.28,0.06]
[1757947780893,29.06600675,234.29,234.28,0.74]
[1757947781281,29.06600675,234.29,234.28,5.00839679]
[1757947781493,29.06600675,234.29,234.28,4.32839679]
[1757947781791,26.0,234.29,234.28,5.00839679]
[1757947782169,29.06600675,234.29,234.28,5.00839679]
[1757947782472,29.06600675,234.29,234.28,0.74]
[1757947782678,29.06600675,234.29,234.28,0.06]
[1757947782679,50.46160076,234.29,234.28,0.06]
[1757947782885,55.41981536,234.29,234.28,0.06]
[1757947783463,58.6043207,234.29,234.28,0.06]
[1757947783882,54.3169993,234.29,234.28,0.06]
[1757947785084,57.50126093,234.29,234.28,0.06]
[1757947786275,54.3169993,234.29,234.28,0.06]
[1757947786803,57.50115043,234.29,234.28,0.06]
[1757947789395,56.81115043,234.29,234.28,0.06]
[1757947790797,52.46293583,234.29,234.28,0.06]
[1757947791098,3.18415113,234.29,234.28,0.06]
[1757947791303,15.5587847,234.29,234.28,0.06]
[1757947791613,75.3587847,234.29,234.28,0.06]
[1757947791802,50.0487847,234.29,234.28,0.06]
[1757947792109,54.3169993,234.29,234.28,0.06]
[1757947793004,49.3787847,234.29,234.28,0.06]
[1757947793508,56.82979676,234.29,234.28,0.06]
[1757947793805,57.51979676,234.29,234.28,0.06]
[1757947795386,82.82979676,234.29,234.28,0.06]
[1757947795693,18.74158216,234.29,234.28,0.06]
[1757947795897,52.54158216,234.29,234.28,0.06]
[1757947796195,53.6269993,234.29,234.28,0.06]
[1757947797405,56.80957494,234.29,234.28,0.06]
[1757947797589,56.80973667,234.29,234.28,0.06]
[1757947797786,52.54152207,234.29,234.28,0.06]
[1757947797986,56.80973667,234.29,234.28,0.06]
[1757947798404,53.6269993,234.29,234.28,0.06]
[1757947799004,0.03,234.31,234.28,0.76]
[1757947799221,0.03,234.31,234.29,0.7]
[1757947799406,33.78,234.3,234.29,0.7]
[1757947799608,35.77319069,234.31,234.29,4.9681902]
[1757947799903,1.96319069,234.3,234.28,0.06]
[1757947800099,1.96319069,234.29,234.28,0.06]
[1757947800711,49.3587847,234.29,234.28,0.06]
[1757947801295,53.6269993,234.29,234.28,0.06]
[1757947801719,49.3587847,234.29,234.28,0.06]
[1757947802517,49.3587847,234.29,234.28,5.04839679]
[1757947802518,1.96319069,234.29,234.28,5.04839679]
[1757947803215,1.96319069,234.29,234.28,0.78]
[1757947803793,59.78,234.3,234.28,0.78]
[1757947804000,1.96319069,234.29,234.28,4.32839679]
[1757947804210,61.74319069,234.3,234.28,4.32839679]
[1757947804412,5.15750434,234.29,234.28,0.06]
[1757947805004,3.19431365,234.29,234.28,0.06]
[1757947805298,5.15750434,234.29,234.28,0.06]
[1757947806015,5.15750434,234.29,234.28,0.78]
[1757947806426,29.19431365,234.29,234.28,5.04839679]
[1757947806606,62.95431365,234.29,234.28,5.04839679]
[1757947806993,3.19431365,234.29,234.28,5.04839679]
[1757947807189,0.03,234.31,234.28,5.04839679]
[1757947807190,35.73319069,234.31,234.28,5.04839679]